[Event "Early-Titled-Tuesday-Blitz-May-28-2024"]
[Site "Chess.com"]
[Date "2024.05.28"]
[Round "7"]
[White "ValeriyGrinev"]
[Black "AradNazari"]
[Result "0-1"]
[WhiteElo "2584"]
[BlackElo "2793"]
[TimeControl "180+1"]
[EndTime "9:17:16 PDT"]
[Termination "AradNazari won by resignation"]

1. e4 {[%clk 0:03:00.9]} 1... c5 {[%clk 0:02:59.6]} 2. Nc3 {[%clk 0:03:00.1]}
2... d6 {[%clk 0:02:57]} 3. g3 {[%clk 0:02:59.8]} 3... g6 {[%clk 0:02:53.9]} 4.
Bg2 {[%clk 0:03:00.3]} 4... Bg7 {[%clk 0:02:54.5]} 5. d3 {[%clk 0:03:00.6]} 5...
e6 {[%clk 0:02:54.5]} 6. Nge2 {[%clk 0:02:57.8]} 6... Ne7 {[%clk 0:02:55.1]} 7.
Be3 {[%clk 0:02:55.1]} 7... O-O {[%clk 0:02:50.1]} 8. Qd2 {[%clk 0:02:51.8]}
8... Re8 {[%clk 0:02:50.4]} 9. O-O {[%clk 0:02:46.5]} 9... Nbc6 {[%clk
0:02:49.7]} 10. f4 {[%clk 0:02:45.7]} 10... Rb8 {[%clk 0:02:47.2]} 11. Bf2
{[%clk 0:02:45]} 11... b5 {[%clk 0:02:46.9]} 12. a4 {[%clk 0:02:41.5]} 12... b4
{[%clk 0:02:46.7]} 13. Nd1 {[%clk 0:02:41.5]} 13... Bb7 {[%clk 0:02:43.8]} 14.
c3 {[%clk 0:02:41]} 14... a5 {[%clk 0:02:43]} 15. Ne3 {[%clk 0:02:38.6]} 15...
d5 {[%clk 0:02:41]} 16. e5 {[%clk 0:02:35]} 16... Ba6 {[%clk 0:02:32]} 17. Ng4
{[%clk 0:02:34.2]} 17... Nf5 {[%clk 0:02:25.7]} 18. Bxc5 {[%clk 0:02:33.1]}
18... bxc3 {[%clk 0:02:02.4]} 19. bxc3 {[%clk 0:02:31.6]} 19... Qc7 {[%clk
0:01:58.3]} 20. Bf2 {[%clk 0:02:22.1]} 20... Rb3 {[%clk 0:01:46.8]} 21. Nf6+
{[%clk 0:02:10.1]} 21... Bxf6 {[%clk 0:01:38.4]} 22. exf6 {[%clk 0:02:11]} 22...
Reb8 {[%clk 0:01:37.2]} 23. Rac1 {[%clk 0:01:48]} 23... Rb2 {[%clk 0:01:28.4]}
24. Rc2 {[%clk 0:01:47.2]} 24... Rxc2 {[%clk 0:01:28.9]} 25. Qxc2 {[%clk
0:01:47.6]} 25... Nb4 {[%clk 0:01:29.5]} 26. Qd1 {[%clk 0:01:39.5]} 26... Nxd3
{[%clk 0:01:28.7]} 27. g4 {[%clk 0:01:26.9]} 27... Nxf2 {[%clk 0:01:24.5]} 28.
Rxf2 {[%clk 0:01:25.8]} 28... Ne3 {[%clk 0:01:25.1]} 29. Qd2 {[%clk 0:01:22.8]}
29... Rb1+ {[%clk 0:01:23.9]} 30. Bf1 {[%clk 0:01:21.4]} 30... Nxg4 {[%clk
0:01:20.4]} 31. f5 {[%clk 0:01:18.1]} 31... exf5 {[%clk 0:00:48.1]} 32. Rg2
{[%clk 0:01:02.6]} 32... Qb6+ {[%clk 0:00:44.8]} 33. Kh1 {[%clk 0:00:50.7]}
33... Rxf1+ {[%clk 0:00:43.5]} 34. Ng1 {[%clk 0:00:50.8]} 34... Nf2+ {[%clk
0:00:37.2]} 35. Rxf2 {[%clk 0:00:50.3]} 35... Qxf2 {[%clk 0:00:38.1]} 36. Qg5
{[%clk 0:00:48.2]} 36... d4 {[%clk 0:00:32.5]} 0-1

[Event "Early-Titled-Tuesday-Blitz-May-28-2024"]
[Site "Chess.com"]
[Date "2024.05.28"]
[Round "7"]
[White "dianamirza"]
[Black "Gumugama"]
[Result "0-1"]
[WhiteElo "2003"]
[BlackElo "2303"]
[TimeControl "180+1"]
[EndTime "9:17:19 PDT"]
[Termination "Gumugama won by checkmate"]

1. e4 {[%clk 0:02:51.7]} 1... c5 {[%clk 0:02:59.3]} 2. c4 {[%clk 0:02:49.7]}
2... Nc6 {[%clk 0:02:58]} 3. Nc3 {[%clk 0:02:50.6]} 3... g6 {[%clk 0:02:57.5]}
4. g3 {[%clk 0:02:51.5]} 4... Bg7 {[%clk 0:02:57.2]} 5. Bg2 {[%clk 0:02:51.1]}
5... e6 {[%clk 0:02:57.2]} 6. d3 {[%clk 0:02:51.2]} 6... Nge7 {[%clk 0:02:57.6]}
7. Be3 {[%clk 0:02:51.4]} 7... Nd4 {[%clk 0:02:56.5]} 8. Qd2 {[%clk 0:02:51.8]}
8... O-O {[%clk 0:02:52.7]} 9. Nge2 {[%clk 0:02:52.4]} 9... Nec6 {[%clk
0:02:48.7]} 10. O-O {[%clk 0:02:52.9]} 10... Re8 {[%clk 0:02:39.3]} 11. Rab1
{[%clk 0:02:42.2]} 11... Rb8 {[%clk 0:02:38]} 12. a3 {[%clk 0:02:41.6]} 12... a6
{[%clk 0:02:36.2]} 13. b4 {[%clk 0:02:41]} 13... d6 {[%clk 0:02:24.7]} 14. b5
{[%clk 0:01:57.3]} 14... axb5 {[%clk 0:02:19.1]} 15. cxb5 {[%clk 0:01:58.2]}
15... Nxe2+ {[%clk 0:02:15.6]} 16. Nxe2 {[%clk 0:01:55.6]} 16... Nd4 {[%clk
0:02:04.7]} 17. f4 {[%clk 0:01:38.1]} 17... Nxe2+ {[%clk 0:02:00.2]} 18. Qxe2
{[%clk 0:01:36.5]} 18... Qa5 {[%clk 0:02:00.5]} 19. Rb3 {[%clk 0:01:21.2]} 19...
Bd7 {[%clk 0:01:57.6]} 20. Rfb1 {[%clk 0:01:16.8]} 20... Rec8 {[%clk 0:01:50.4]}
21. Bd2 {[%clk 0:01:13.5]} 21... Qa4 {[%clk 0:01:45.6]} 22. f5 {[%clk 0:01:06]}
22... exf5 {[%clk 0:01:37.5]} 23. exf5 {[%clk 0:01:05.9]} 23... Bxf5 {[%clk
0:01:37.6]} 24. Bf4 {[%clk 0:00:52.3]} 24... c4 {[%clk 0:01:27.6]} 25. Rb4
{[%clk 0:00:47.4]} 25... Qxa3 {[%clk 0:01:25.8]} 26. Bxd6 {[%clk 0:00:39.1]}
26... Bxd3 {[%clk 0:01:16.7]} 27. Qf3 {[%clk 0:00:35.9]} 27... Ra8 {[%clk
0:01:14.7]} 28. Re1 {[%clk 0:00:18.1]} 28... Re8 {[%clk 0:00:52.2]} 29. Rxe8+
{[%clk 0:00:15.8]} 29... Rxe8 {[%clk 0:00:51.7]} 30. Qxb7 {[%clk 0:00:13.2]}
30... Qc1+ {[%clk 0:00:46.6]} 31. Kf2 {[%clk 0:00:10.8]} 31... Qe3# {[%clk
0:00:46.8]} 0-1

[Event "Early-Titled-Tuesday-Blitz-May-28-2024"]
[Site "Chess.com"]
[Date "2024.05.28"]
[Round "7"]
[White "edgarhay012"]
[Black "platy3"]
[Result "0-1"]
[WhiteElo "2628"]
[BlackElo "2878"]
[TimeControl "180+1"]
[EndTime "9:17:20 PDT"]
[Termination "platy3 won on time"]

1. e4 {[%clk 0:03:00.9]} 1... c5 {[%clk 0:02:59]} 2. Nc3 {[%clk 0:03:01.1]} 2...
e6 {[%clk 0:02:58.2]} 3. Nf3 {[%clk 0:03:01]} 3... Nc6 {[%clk 0:02:58.4]} 4. Bb5
{[%clk 0:03:00.8]} 4... Nd4 {[%clk 0:02:57]} 5. Bd3 {[%clk 0:02:56.2]} 5... a6
{[%clk 0:02:57.3]} 6. Nxd4 {[%clk 0:02:51.3]} 6... cxd4 {[%clk 0:02:57.5]} 7.
Ne2 {[%clk 0:02:51.8]} 7... Bc5 {[%clk 0:02:54.2]} 8. O-O {[%clk 0:02:50.6]}
8... Qh4 {[%clk 0:02:44]} 9. g3 {[%clk 0:02:39.4]} 9... Qh5 {[%clk 0:02:14.5]}
10. c3 {[%clk 0:01:59.2]} 10... dxc3 {[%clk 0:02:11.3]} 11. bxc3 {[%clk
0:01:48.1]} 11... Nf6 {[%clk 0:02:08.8]} 12. Nf4 {[%clk 0:01:09.7]} 12... Qxd1
{[%clk 0:02:02.2]} 13. Rxd1 {[%clk 0:01:10.6]} 13... e5 {[%clk 0:01:59.5]} 14.
Ng2 {[%clk 0:00:50.1]} 14... d6 {[%clk 0:01:57.5]} 15. Ne3 {[%clk 0:00:35.6]}
15... Be6 {[%clk 0:01:56.7]} 16. Bc2 {[%clk 0:00:33.7]} 16... O-O {[%clk
0:01:53.8]} 17. d4 {[%clk 0:00:33.2]} 17... Ba7 {[%clk 0:01:54.1]} 18. Ba3
{[%clk 0:00:32.2]} 18... Rfd8 {[%clk 0:01:53.8]} 19. Rab1 {[%clk 0:00:22.6]}
19... b5 {[%clk 0:01:52.9]} 20. d5 {[%clk 0:00:19.5]} 20... Bh3 {[%clk
0:01:44.7]} 21. Bd3 {[%clk 0:00:11]} 21... Rac8 {[%clk 0:01:42.8]} 22. Rbc1
{[%clk 0:00:11.4]} 22... Bxe3 {[%clk 0:01:27.7]} 23. fxe3 {[%clk 0:00:12.3]}
23... Bg4 {[%clk 0:01:28.3]} 24. Rf1 {[%clk 0:00:09.2]} 24... Bh5 {[%clk
0:01:28.5]} 25. c4 {[%clk 0:00:06.4]} 25... bxc4 {[%clk 0:01:24.6]} 26. Rxc4
{[%clk 0:00:05.3]} 26... Rxc4 {[%clk 0:01:20.7]} 27. Bxc4 {[%clk 0:00:06.2]}
27... Nxe4 {[%clk 0:01:20.1]} 28. Rc1 {[%clk 0:00:05.4]} 28... a5 {[%clk
0:01:15.1]} 29. Bd3 {[%clk 0:00:02.5]} 29... Bg6 {[%clk 0:01:03.9]} 30. Bxe4
{[%clk 0:00:02]} 30... Bxe4 {[%clk 0:01:04.8]} 31. Bxd6 {[%clk 0:00:02.5]} 31...
f6 {[%clk 0:01:05.6]} 32. Rc6 {[%clk 0:00:01.5]} 32... Bxd5 {[%clk 0:01:05.2]}
33. Ra6 {[%clk 0:00:02.2]} 33... Bc4 {[%clk 0:01:04.6]} 34. Bc7 {[%clk 0:00:02]}
34... Rd1+ {[%clk 0:01:03.9]} 0-1

[Event "Early-Titled-Tuesday-Blitz-May-28-2024"]
[Site "Chess.com"]
[Date "2024.05.28"]
[Round "7"]
[White "suyu28"]
[Black "Msb2"]
[Result "0-1"]
[WhiteElo "2772"]
[BlackElo "3044"]
[TimeControl "180+1"]
[EndTime "9:17:22 PDT"]
[Termination "Msb2 won on time"]

1. d4 {[%clk 0:03:00.9]} 1... d5 {[%clk 0:03:00.3]} 2. c4 {[%clk 0:03:01.3]}
2... e6 {[%clk 0:03:00.9]} 3. Nf3 {[%clk 0:03:01.2]} 3... Nf6 {[%clk 0:03:01.1]}
4. g3 {[%clk 0:03:01]} 4... Nc6 {[%clk 0:03:01.7]} 5. Bg2 {[%clk 0:02:59.4]}
5... Bd6 {[%clk 0:03:02.2]} 6. O-O {[%clk 0:02:59.6]} 6... O-O {[%clk
0:03:02.8]} 7. Nc3 {[%clk 0:02:47.6]} 7... dxc4 {[%clk 0:03:02.5]} 8. Qa4 {[%clk
0:02:44.1]} 8... e5 {[%clk 0:03:02.8]} 9. dxe5 {[%clk 0:02:43.3]} 9... Nxe5
{[%clk 0:03:03.7]} 10. Nxe5 {[%clk 0:02:43.3]} 10... Bxe5 {[%clk 0:03:04.6]} 11.
Qxc4 {[%clk 0:02:43.5]} 11... c6 {[%clk 0:03:04.5]} 12. Rd1 {[%clk 0:02:41.6]}
12... Qe7 {[%clk 0:03:04.6]} 13. Qb3 {[%clk 0:02:41]} 13... Be6 {[%clk
0:03:04.7]} 14. Qc2 {[%clk 0:02:41.4]} 14... Rfd8 {[%clk 0:03:03.8]} 15. Be3
{[%clk 0:02:36.5]} 15... Ng4 {[%clk 0:02:52.1]} 16. Rxd8+ {[%clk 0:02:33]} 16...
Qxd8 {[%clk 0:02:51.9]} 17. Bd2 {[%clk 0:02:30.9]} 17... Qb6 {[%clk 0:02:46.3]}
18. e3 {[%clk 0:02:25]} 18... Rd8 {[%clk 0:02:44.1]} 19. Rd1 {[%clk 0:02:17.9]}
19... g6 {[%clk 0:02:39.1]} 20. b3 {[%clk 0:02:04.4]} 20... Nf6 {[%clk
0:02:29.5]} 21. Na4 {[%clk 0:01:57]} 21... Qc7 {[%clk 0:02:28.7]} 22. Nc5 {[%clk
0:01:53]} 22... Bc8 {[%clk 0:02:27.2]} 23. Be1 {[%clk 0:01:47.6]} 23... Rxd1
{[%clk 0:02:26.5]} 24. Qxd1 {[%clk 0:01:48.5]} 24... b6 {[%clk 0:02:23.6]} 25.
Nd3 {[%clk 0:01:46.7]} 25... Bd6 {[%clk 0:01:49.3]} 26. Bc3 {[%clk 0:01:45.2]}
26... Be7 {[%clk 0:01:49.6]} 27. Ne5 {[%clk 0:01:42.2]} 27... Bb7 {[%clk
0:01:40.3]} 28. Qd3 {[%clk 0:01:39.5]} 28... c5 {[%clk 0:01:34.1]} 29. Qc4
{[%clk 0:01:32.6]} 29... Bd8 {[%clk 0:01:21.5]} 30. Nxf7 {[%clk 0:00:37.4]}
30... Bxg2 {[%clk 0:01:21.1]} 31. Nxd8+ {[%clk 0:00:20.5]} 31... Bd5 {[%clk
0:01:21.3]} 32. Qh4 {[%clk 0:00:15.4]} 32... Ne4 {[%clk 0:01:04.7]} 33. Bb2
{[%clk 0:00:09.9]} 33... c4 {[%clk 0:01:05.3]} 34. bxc4 {[%clk 0:00:03.8]} 34...
Nd2 {[%clk 0:01:05.9]} 0-1

[Event "Early-Titled-Tuesday-Blitz-May-28-2024"]
[Site "Chess.com"]
[Date "2024.05.28"]
[Round "7"]
[White "Quattroporte300"]
[Black "NowInChess"]
[Result "1-0"]
[WhiteElo "2402"]
[BlackElo "2233"]
[TimeControl "180+1"]
[EndTime "9:17:25 PDT"]
[Termination "Quattroporte300 won on time"]

1. e4 {[%clk 0:03:00.9]} 1... e6 {[%clk 0:03:00.1]} 2. b3 {[%clk 0:03:00.4]}
2... d5 {[%clk 0:03:00.1]} 3. Bb2 {[%clk 0:03:01]} 3... dxe4 {[%clk 0:03:00.5]}
4. Nc3 {[%clk 0:03:01]} 4... Nf6 {[%clk 0:03:00.9]} 5. Qe2 {[%clk 0:03:00.4]}
5... Bb4 {[%clk 0:03:01.2]} 6. O-O-O {[%clk 0:02:59.2]} 6... Qe7 {[%clk
0:02:58.7]} 7. Nxe4 {[%clk 0:02:58.2]} 7... Ba3 {[%clk 0:02:59]} 8. Nxf6+ {[%clk
0:02:53.5]} 8... Qxf6 {[%clk 0:02:59.9]} 9. d4 {[%clk 0:02:44.3]} 9... Bxb2+
{[%clk 0:02:59.6]} 10. Kxb2 {[%clk 0:02:43.9]} 10... a5 {[%clk 0:03:00.2]} 11.
a4 {[%clk 0:02:42.7]} 11... Nc6 {[%clk 0:02:59.8]} 12. Nf3 {[%clk 0:02:42.1]}
12... O-O {[%clk 0:02:49.2]} 13. Qe4 {[%clk 0:02:41.5]} 13... Ne7 {[%clk
0:02:21.3]} 14. h4 {[%clk 0:02:36.3]} 14... Qf5 {[%clk 0:02:12.6]} 15. Bd3
{[%clk 0:02:26.2]} 15... Qxe4 {[%clk 0:02:09.6]} 16. Bxe4 {[%clk 0:02:25.7]}
16... f5 {[%clk 0:01:57.6]} 17. Bd3 {[%clk 0:02:24.9]} 17... h6 {[%clk
0:01:58.2]} 18. Rhe1 {[%clk 0:02:23.6]} 18... Nd5 {[%clk 0:01:56.6]} 19. Bc4
{[%clk 0:02:17.1]} 19... Bd7 {[%clk 0:01:17.4]} 20. Ne5 {[%clk 0:02:11.7]} 20...
Be8 {[%clk 0:01:09.8]} 21. Nd3 {[%clk 0:02:05.6]} 21... Bh5 {[%clk 0:01:02.5]}
22. Rd2 {[%clk 0:02:04.9]} 22... Rae8 {[%clk 0:01:00.9]} 23. Nc5 {[%clk
0:01:55.4]} 23... Bf7 {[%clk 0:00:32.3]} 24. Nxb7 {[%clk 0:01:42.8]} 24... Rb8
{[%clk 0:00:23.1]} 25. Nxa5 {[%clk 0:01:35.3]} 25... Rb6 {[%clk 0:00:14.6]} 26.
Bb5 {[%clk 0:01:34.4]} 26... Ra8 {[%clk 0:00:11.5]} 27. Nc4 {[%clk 0:01:32.3]}
27... Rbb8 {[%clk 0:00:09.8]} 28. Ne5 {[%clk 0:01:26.2]} 28... Rb6 {[%clk
0:00:05.6]} 29. Nd7 {[%clk 0:01:16.2]} 29... Rb7 {[%clk 0:00:05]} 30. Bc6 {[%clk
0:01:11.7]} 30... Raa7 {[%clk 0:00:04.6]} 31. Bxb7 {[%clk 0:01:11]} 31... Rxb7
{[%clk 0:00:05.5]} 32. Nc5 {[%clk 0:01:10.7]} 32... Rb6 {[%clk 0:00:05.7]} 33.
a5 {[%clk 0:01:09.6]} 33... Rb5 {[%clk 0:00:05.9]} 34. Ra1 {[%clk 0:01:04.8]}
34... c6 {[%clk 0:00:02.6]} 35. c4 {[%clk 0:01:02.4]} 1-0

[Event "Early-Titled-Tuesday-Blitz-May-28-2024"]
[Site "Chess.com"]
[Date "2024.05.28"]
[Round "7"]
[White "GMAneta"]
[Black "H3nriqueTV"]
[Result "1-0"]
[WhiteElo "2532"]
[BlackElo "2360"]
[TimeControl "180+1"]
[EndTime "9:17:28 PDT"]
[Termination "GMAneta won by resignation"]

1. d4 {[%clk 0:03:00.9]} 1... Nf6 {[%clk 0:02:55.5]} 2. Nf3 {[%clk 0:03:00.1]}
2... g6 {[%clk 0:02:55.5]} 3. c4 {[%clk 0:02:59.9]} 3... Bg7 {[%clk 0:02:54.4]}
4. g3 {[%clk 0:03:00.1]} 4... O-O {[%clk 0:02:54.1]} 5. Bg2 {[%clk 0:02:56.3]}
5... c5 {[%clk 0:02:54]} 6. Nc3 {[%clk 0:02:51.2]} 6... d5 {[%clk 0:02:53.7]} 7.
dxc5 {[%clk 0:02:48.5]} 7... Ne4 {[%clk 0:02:50.5]} 8. Nxd5 {[%clk 0:02:46.5]}
8... e6 {[%clk 0:02:40.3]} 9. Ne3 {[%clk 0:02:44.1]} 9... Qa5+ {[%clk
0:02:39.5]} 10. Bd2 {[%clk 0:02:43.8]} 10... Qxc5 {[%clk 0:02:39.3]} 11. b4
{[%clk 0:02:41]} 11... Qc7 {[%clk 0:02:15.8]} 12. Rc1 {[%clk 0:02:29.8]} 12...
Rd8 {[%clk 0:02:15.4]} 13. Qc2 {[%clk 0:02:29.1]} 13... Nxd2 {[%clk 0:02:06.8]}
14. Nxd2 {[%clk 0:02:29]} 14... Nc6 {[%clk 0:02:07.7]} 15. Qb1 {[%clk
0:02:26.6]} 15... Nd4 {[%clk 0:02:06]} 16. Nf3 {[%clk 0:02:24.8]} 16... e5
{[%clk 0:01:28.6]} 17. Nxd4 {[%clk 0:02:21]} 17... exd4 {[%clk 0:01:28.3]} 18.
Nd5 {[%clk 0:02:21.2]} 18... Qe5 {[%clk 0:01:28.2]} 19. Qb2 {[%clk 0:02:10.8]}
19... Qd6 {[%clk 0:00:44.9]} 20. Qd2 {[%clk 0:02:03.9]} 20... Bf5 {[%clk
0:00:36.1]} 21. O-O {[%clk 0:01:59.7]} 21... d3 {[%clk 0:00:36.3]} 22. exd3
{[%clk 0:01:58.6]} 22... Rac8 {[%clk 0:00:35.7]} 23. Rfe1 {[%clk 0:01:57.8]}
23... b5 {[%clk 0:00:30.1]} 24. c5 {[%clk 0:01:54.6]} 24... Qd7 {[%clk
0:00:30.1]} 25. Ne7+ {[%clk 0:01:53.4]} 25... Kh8 {[%clk 0:00:30.1]} 26. Nxc8
{[%clk 0:01:53.6]} 26... Qxc8 {[%clk 0:00:31]} 27. c6 {[%clk 0:01:53.6]} 27...
Rxd3 {[%clk 0:00:30]} 28. Qf4 {[%clk 0:01:50.4]} 28... h6 {[%clk 0:00:29.1]} 29.
c7 {[%clk 0:01:49.6]} 29... Rd7 {[%clk 0:00:28.9]} 30. h4 {[%clk 0:01:47.2]}
30... Be6 {[%clk 0:00:27.4]} 31. Bb7 {[%clk 0:01:45.4]} 31... Qxb7 {[%clk
0:00:21]} 32. c8=Q+ {[%clk 0:01:45.2]} 32... Qxc8 {[%clk 0:00:19.7]} 33. Rxc8+
{[%clk 0:01:44.4]} 33... Kh7 {[%clk 0:00:20.6]} 34. Rc6 {[%clk 0:01:44.5]} 34...
Bf5 {[%clk 0:00:18.5]} 35. Rd6 {[%clk 0:01:42.4]} 35... Rc7 {[%clk 0:00:18.3]}
36. h5 {[%clk 0:01:42.5]} 36... Rc4 {[%clk 0:00:17.7]} 37. hxg6+ {[%clk
0:01:42.6]} 37... Bxg6 {[%clk 0:00:16.6]} 38. Qf3 {[%clk 0:01:42]} 38... Rxb4
{[%clk 0:00:14.6]} 39. Rd7 {[%clk 0:01:42]} 39... Rb2 {[%clk 0:00:06.9]} 40.
Rxf7 {[%clk 0:01:33.8]} 40... Bxf7 {[%clk 0:00:07]} 41. Qxf7 {[%clk 0:01:33.1]}
41... Rb4 {[%clk 0:00:04]} 42. Re7 {[%clk 0:01:32.3]} 42... Rg4 {[%clk 0:00:04]}
43. Qf5+ {[%clk 0:01:32.3]} 43... Rg6 {[%clk 0:00:04]} 44. Re6 {[%clk
0:01:31.8]} 1-0

[Event "Early-Titled-Tuesday-Blitz-May-28-2024"]
[Site "Chess.com"]
[Date "2024.05.28"]
[Round "7"]
[White "DeyanKostov"]
[Black "MarlonJodar"]
[Result "1-0"]
[WhiteElo "2451"]
[BlackElo "2313"]
[TimeControl "180+1"]
[EndTime "9:17:28 PDT"]
[Termination "DeyanKostov won on time"]

1. d4 {[%clk 0:03:00.9]} 1... d5 {[%clk 0:02:59]} 2. c4 {[%clk 0:03:00.9]} 2...
c6 {[%clk 0:02:59.2]} 3. Nf3 {[%clk 0:02:59.3]} 3... Nf6 {[%clk 0:02:58.9]} 4.
e3 {[%clk 0:02:56.7]} 4... a6 {[%clk 0:02:56.5]} 5. cxd5 {[%clk 0:02:55]} 5...
cxd5 {[%clk 0:02:55.3]} 6. Nc3 {[%clk 0:02:54.7]} 6... Nc6 {[%clk 0:02:55.5]} 7.
Bd3 {[%clk 0:02:54.3]} 7... Bg4 {[%clk 0:02:54.9]} 8. h3 {[%clk 0:02:54.1]} 8...
Bh5 {[%clk 0:02:54.4]} 9. a3 {[%clk 0:02:50.6]} 9... e6 {[%clk 0:02:54.2]} 10.
b4 {[%clk 0:02:49.1]} 10... Bd6 {[%clk 0:02:51.7]} 11. Bb2 {[%clk 0:02:45]}
11... O-O {[%clk 0:02:51]} 12. O-O {[%clk 0:02:44.9]} 12... Rc8 {[%clk
0:02:49.8]} 13. Rc1 {[%clk 0:02:43.5]} 13... Bb8 {[%clk 0:02:49]} 14. Be2 {[%clk
0:02:39.6]} 14... Qd6 {[%clk 0:02:42.5]} 15. g3 {[%clk 0:02:39.6]} 15... Rfd8
{[%clk 0:02:28.7]} 16. Kg2 {[%clk 0:02:34.6]} 16... Ne4 {[%clk 0:02:04.3]} 17.
Nxe4 {[%clk 0:02:32.3]} 17... dxe4 {[%clk 0:02:05.2]} 18. Nd2 {[%clk 0:02:28.4]}
18... Bg6 {[%clk 0:02:01.1]} 19. Nc4 {[%clk 0:02:18.6]} 19... Qe7 {[%clk
0:01:48.2]} 20. Qb3 {[%clk 0:02:07.4]} 20... h5 {[%clk 0:01:40.7]} 21. h4 {[%clk
0:02:05.8]} 21... Bc7 {[%clk 0:01:30.5]} 22. Rfd1 {[%clk 0:02:03.7]} 22... Rd5
{[%clk 0:01:20.7]} 23. Ne5 {[%clk 0:01:57.9]} 23... Bxe5 {[%clk 0:01:12.5]} 24.
dxe5 {[%clk 0:01:58.8]} 24... Rcd8 {[%clk 0:01:12.6]} 25. Bc4 {[%clk 0:01:49.6]}
25... Rd3 {[%clk 0:00:52.7]} 26. Bxd3 {[%clk 0:01:42]} 26... exd3 {[%clk
0:00:53.6]} 27. f3 {[%clk 0:01:42.1]} 27... d2 {[%clk 0:00:34.7]} 28. Rxc6
{[%clk 0:01:24.6]} 28... bxc6 {[%clk 0:00:32.9]} 29. Bd4 {[%clk 0:01:25.2]}
29... Rb8 {[%clk 0:00:18.3]} 30. Qc3 {[%clk 0:01:17.6]} 30... Qb7 {[%clk
0:00:17.4]} 31. Rxd2 {[%clk 0:01:16.5]} 31... Qb5 {[%clk 0:00:16.6]} 32. Bc5
{[%clk 0:01:14.3]} 32... Ra8 {[%clk 0:00:11.1]} 33. e4 {[%clk 0:01:07.9]} 33...
a5 {[%clk 0:00:09.5]} 34. Qd3 {[%clk 0:01:07.4]} 34... Qxd3 {[%clk 0:00:03.9]}
35. Rxd3 {[%clk 0:01:08.3]} 35... axb4 {[%clk 0:00:04.3]} 36. axb4 {[%clk
0:01:09.2]} 36... f5 {[%clk 0:00:04.5]} 37. exf6 {[%clk 0:01:07.5]} 37... Bf5
{[%clk 0:00:05.4]} 38. exf5 {[%clk 0:01:07.2]} 38... gxf6 {[%clk 0:00:06.3]} 39.
fxe6 {[%clk 0:01:06.8]} 1-0

[Event "Early-Titled-Tuesday-Blitz-May-28-2024"]
[Site "Chess.com"]
[Date "2024.05.28"]
[Round "7"]
[White "OparinGrigoriy"]
[Black "juancruzarias"]
[Result "1-0"]
[WhiteElo "3040"]
[BlackElo "2679"]
[TimeControl "180+1"]
[EndTime "9:17:37 PDT"]
[Termination "OparinGrigoriy won by resignation"]

1. Nc3 {[%clk 0:03:00.9]} 1... d5 {[%clk 0:02:59.4]} 2. d4 {[%clk 0:03:00.4]}
2... Nf6 {[%clk 0:02:58.6]} 3. Bf4 {[%clk 0:03:00.9]} 3... c5 {[%clk 0:02:58.7]}
4. e3 {[%clk 0:03:01.2]} 4... cxd4 {[%clk 0:02:59.3]} 5. exd4 {[%clk 0:03:02.1]}
5... Bg4 {[%clk 0:02:59.4]} 6. Be2 {[%clk 0:03:01.6]} 6... Bxe2 {[%clk
0:02:59.3]} 7. Ncxe2 {[%clk 0:03:02.1]} 7... Nc6 {[%clk 0:02:59.8]} 8. c3 {[%clk
0:03:02.1]} 8... e6 {[%clk 0:03:00.4]} 9. Nf3 {[%clk 0:03:02.7]} 9... Bd6 {[%clk
0:03:01]} 10. Bg3 {[%clk 0:03:03.1]} 10... O-O {[%clk 0:02:59.1]} 11. O-O {[%clk
0:03:03]} 11... Qc7 {[%clk 0:02:57.7]} 12. Re1 {[%clk 0:03:03.3]} 12... Rab8
{[%clk 0:02:54.8]} 13. a4 {[%clk 0:03:03.5]} 13... a6 {[%clk 0:02:54.8]} 14. Qd3
{[%clk 0:03:02.5]} 14... b5 {[%clk 0:02:53.8]} 15. axb5 {[%clk 0:03:03.4]} 15...
axb5 {[%clk 0:02:54.4]} 16. b4 {[%clk 0:03:03.2]} 16... Bxg3 {[%clk 0:02:45.8]}
17. hxg3 {[%clk 0:03:02.9]} 17... Ne7 {[%clk 0:02:38]} 18. Nc1 {[%clk 0:03:00]}
18... Nc8 {[%clk 0:02:37.9]} 19. Nb3 {[%clk 0:03:00]} 19... Nd6 {[%clk
0:02:37.4]} 20. Nc5 {[%clk 0:02:59.7]} 20... Ra8 {[%clk 0:02:38.1]} 21. Ne5
{[%clk 0:02:57.5]} 21... Nc4 {[%clk 0:02:32.8]} 22. Nf3 {[%clk 0:02:41.4]} 22...
Qc6 {[%clk 0:02:19]} 23. Ng5 {[%clk 0:02:31.6]} 23... h6 {[%clk 0:02:12.4]} 24.
Nh3 {[%clk 0:02:24.6]} 24... Rxa1 {[%clk 0:02:11.6]} 25. Rxa1 {[%clk 0:02:25.5]}
25... Ra8 {[%clk 0:02:11.8]} 26. Re1 {[%clk 0:02:21.1]} 26... Ne4 {[%clk
0:02:00.4]} 27. Nxe4 {[%clk 0:02:07.4]} 27... dxe4 {[%clk 0:02:00.5]} 28. Rxe4
{[%clk 0:02:08.3]} 28... Ra1+ {[%clk 0:01:55.2]} 29. Kh2 {[%clk 0:02:08.1]}
29... Nd6 {[%clk 0:01:41.4]} 30. Re5 {[%clk 0:01:58.6]} 30... Qc4 {[%clk
0:01:27]} 31. Qxc4 {[%clk 0:01:51.2]} 31... bxc4 {[%clk 0:01:27.9]} 32. d5
{[%clk 0:01:47.7]} 32... exd5 {[%clk 0:01:18]} 33. Rxd5 {[%clk 0:01:48.6]} 33...
Ne4 {[%clk 0:01:18.2]} 34. Rd4 {[%clk 0:01:49.3]} 34... Nxc3 {[%clk 0:01:16.8]}
35. Rxc4 {[%clk 0:01:49.8]} 35... Nd5 {[%clk 0:01:15.6]} 36. Rd4 {[%clk
0:01:47.2]} 36... Nf6 {[%clk 0:01:13]} 37. f3 {[%clk 0:01:47.7]} 37... Rb1
{[%clk 0:01:12.1]} 38. Nf4 {[%clk 0:01:47.8]} 38... Rb2 {[%clk 0:01:09.5]} 39.
g4 {[%clk 0:01:47.5]} 39... Kf8 {[%clk 0:01:05]} 40. Kg3 {[%clk 0:01:46.9]}
40... Ke7 {[%clk 0:01:04.7]} 41. Nh5 {[%clk 0:01:47.1]} 41... Nxh5+ {[%clk
0:01:03.9]} 42. gxh5 {[%clk 0:01:48]} 42... Ke6 {[%clk 0:01:02.7]} 43. Kh3
{[%clk 0:01:46.3]} 43... Ke5 {[%clk 0:01:01.5]} 44. Re4+ {[%clk 0:01:46.7]}
44... Kf5 {[%clk 0:01:01.7]} 45. g4+ {[%clk 0:01:46.4]} 45... Kf6 {[%clk
0:01:02.2]} 46. Rf4+ {[%clk 0:01:44.7]} 46... Ke6 {[%clk 0:01:01.5]} 47. Kg3
{[%clk 0:01:43.8]} 47... g6 {[%clk 0:00:58.9]} 48. Rc4 {[%clk 0:01:41.4]} 48...
gxh5 {[%clk 0:00:57]} 49. gxh5 {[%clk 0:01:42.3]} 49... Kf6 {[%clk 0:00:57.3]}
50. Kf4 {[%clk 0:01:39.9]} 50... Rb1 {[%clk 0:00:49.5]} 51. Rc6+ {[%clk
0:01:36.8]} 51... Kg7 {[%clk 0:00:49.4]} 52. Rb6 {[%clk 0:01:37.3]} 52... Rh1
{[%clk 0:00:45.8]} 53. Rb5 {[%clk 0:01:32.3]} 53... Kf6 {[%clk 0:00:43.9]} 54.
Rf5+ {[%clk 0:01:31.1]} 54... Kg7 {[%clk 0:00:43.9]} 55. b5 {[%clk 0:01:30.5]}
55... Rb1 {[%clk 0:00:41.5]} 56. Ke4 {[%clk 0:01:29.5]} 56... Kf8 {[%clk
0:00:40.4]} 57. Kd4 {[%clk 0:01:26.2]} 57... Ke7 {[%clk 0:00:38.8]} 58. Kc5
{[%clk 0:01:26.4]} 58... Ke6 {[%clk 0:00:37.3]} 59. Rf4 {[%clk 0:01:26.8]} 59...
Rh1 {[%clk 0:00:31.7]} 60. b6 {[%clk 0:01:24]} 60... Rxh5+ {[%clk 0:00:31.6]}
61. Kc6 {[%clk 0:01:24.6]} 1-0